Workbook

Sheet Mittelhilfstabelle
A2: Stunde | B2: Wind | C2: Luftfeuchtigkeit | D2: Luftdruck | E2: Taupunkttemperatur | F2: Bewölkung | H2: Stunde | I2: Wind | J2: Luftfeuchtigkeit | K2: Luftdruck | L2: Taupunkttemperatur | M2: Bewölkung
A3: 00 | B3: 2 | C3: 71 | D3: 1017.5 | E3: 4.3 | F3: 5 | H3: 00 | I3: 1 | J3: 82 | K3: 1020.2 | L3: 6.5 | M3: 2
A4: 01 | B4: 0 | C4: 78 | D4: 1017.9 | E4: 4.3 | F4: 1 | H4: 01 | I4: 2 | J4: 81 | K4: 1019.7 | L4: 6.2 | M4: 1
A5: 02 | B5: 2 | C5: 80 | D5: 1017.9 | E5: 4.3 | F5: 1 | H5: 02 | I5: 1 | J5: 85 | K5: 1019.5 | L5: 5.8 | M5: 1
A6: 03 | B6: 1 | C6: 82 | D6: 1017.9 | E6: 3.6 | F6: 4 | H6: 03 | I6: 0 | J6: 88 | K6: 1019.3 | L6: 5.7 | M6: 2
A7: 04 | B7: 1 | C7: 87 | D7: 1018.2 | E7: 3.1 | F7: 4 | H7: 04 | I7: 0 | J7: 87 | K7: 1019.1 | L7: 6 | M7: 4
A8: 05 | B8: 0 | C8: 84 | D8: 1017.9 | E8: 3.5 | F8: 2 | H8: 05 | I8: 0 | J8: 85 | K8: 1019 | L8: 6.3 | M8: 4
A9: 06 | B9: 0 | C9: 83 | D9: 1018.1 | E9: 5.6 | F9: 2 | H9: 06 | I9: 0 | J9: 91 | K9: 1019 | L9: 7.6 | M9: 4
A10: 07 | B10: 1 | C10: 79 | D10: 1018 | E10: 7.2 | F10: 5 | H10: 07 | I10: 1 | J10: 89 | K10: 1019.4 | L10: 8.9 | M10: 4
A11: 08 | B11: 1 | C11: 77 | D11: 1017.7 | E11: 9.4 | F11: 6 | H11: 08 | I11: 2 | J11: 62 | K11: 1019.2 | L11: 5.8 | M11: 5
A12: 09 | B12: 3 | C12: 51 | D12: 1017.1 | E12: 6.7 | F12: 6 | H12: 09 | I12: 2 | J12: 51 | K12: 1018.7 | L12: 4.1 | M12: 6
A13: 10 | B13: 3 | C13: 55 | D13: 1016.9 | E13: 7.8 | F13: 6 | H13: 10 | I13: 2 | J13: 50 | K13: 1018.1 | L13: 5.3 | M13: 8
A14: 11 | B14: 3 | C14: 53 | D14: 1016.5 | E14: 9 | F14: 7 | H14: 11 | I14: 2 | J14: 53 | K14: 1017.3 | L14: 6.6 | M14: 7
A15: 12 | B15: 2 | C15: 51 | D15: 1016.4 | E15: 8.1 | F15: 7 | H15: 12 | I15: 2 | J15: 61 | K15: 1016.4 | L15: 9.5 | M15: 7
A16: 13 | B16: 2 | C16: 53 | D16: 1015.9 | E16: 9.8 | F16: 7 | H16: 13 | I16: 2 | J16: 55 | K16: 1015.7 | L16: 9.7 | M16: 5
A17: 14 | B17: 3 | C17: 48 | D17: 1015.3 | E17: 8.6 | F17: 7 | H17: 14 | I17: 1 | J17: 55 | K17: 1015.2 | L17: 10 | M17: 5
A18: 15 | B18: 2 | C18: 46 | D18: 1014.8 | E18: 8.4 | F18: 5 | H18: 15 | I18: 1 | J18: 51 | K18: 1014.6 | L18: 9.2 | M18: 3
A19: 16 | B19: 2 | C19: 42 | D19: 1014.1 | E19: 8.8 | F19: 3 | H19: 16 | I19: 2 | J19: 51 | K19: 1013.9 | L19: 9.2 | M19: 4
A20: 17 | B20: 3 | C20: 45 | D20: 1013.6 | E20: 9.2 | F20: 3 | H20: 17 | I20: 1 | J20: 58 | K20: 1013.3 | L20: 10.7 | M20: 6
A21: 18 | B21: 2 | C21: 47 | D21: 1013.4 | E21: 9 | F21: 5 | H21: 18 | I21: 2 | J21: 49 | K21: 1013.1 | L21: 7.8 | M21: 7
A22: 19 | B22: 2 | C22: 51 | D22: 1013.5 | E22: 9.1 | F22: 6 | H22: 19 | I22: 1 | J22: 56 | K22: 1013.1 | L22: 8.8 | M22: 7
A23: 20 | B23: 1 | C23: 65 | D23: 1013.6 | E23: 10.1 | F23: 6 | H23: 20 | I23: 1 | J23: 57 | K23: 1013 | L23: 8.1 | M23: 7
A24: 21 | B24: 2 | C24: 68 | D24: 1013.8 | E24: 9.2 | F24: 5 | H24: 21 | I24: 2 | J24: 59 | K24: 1013.3 | L24: 8 | M24: 7
A25: 22 | B25: 2 | C25: 67 | D25: 1013.7 | E25: 9.7 | F25: 6 | H25: 22 | I25: 2 | J25: 58 | K25: 1013.1 | L25: 7.6 | M25: 8
A26: 23 | B26: 2 | C26: 68 | D26: 1013.5 | E26: 10.3 | F26: 7 | H26: 23 | I26: 2 | J26: 68 | K26: 1014 | L26: 9.3 | M26: 8
A27: Mittel | B27: =ROUND(AVERAGE(B3:B26),1) -> 1.8 | C27: =ROUND(AVERAGE(C3:C26),1) -> 63.8 | D27: =ROUND(AVERAGE(D3:D26),1) -> 1016 | E27: =AVERAGE(E3:E26) -> 7.4625 | F27: =ROUND(AVERAGE(F3:F26),1) -> 4.8 | H27: Mittel | I27: =ROUND(AVERAGE(I3:I26),1) -> 1.3 | J27: =ROUND(AVERAGE(J3:J26),1) -> 65.9 | K27: =ROUND(AVERAGE(K3:K26),1) -> 1016.6 | L27: =AVERAGE(L3:L26) -> 7.6125 | M27: =ROUND(AVERAGE(M3:M26),1) -> 5.1
E29: 2015-05-31 | L29: 2015-05-28
A32: Stunde | B32: Wind | C32: Luftfeuchtigkeit | D32: Luftdruck | E32: Taupunkttemperatur | F32: Bewölkung | H32: Stunde | I32: Wind | J32: Luftfeuchtigkeit | K32: Luftdruck | L32: Taupunkttemperatur | M32: Bewölkung
A33: 00 | B33: 1 | C33: 84 | D33: 1014.5 | E33: 10.7 | F33: 8 | H33: 00 | I33: 2 | J33: 72 | K33: 1008.3 | L33: 10 | M33: 8
A34: 01 | B34: 1 | C34: 90 | D34: 1014.3 | E34: 10.7 | F34: 8 | H34: 01 | I34: 2 | J34: 68 | K34: 1008.4 | L34: 9.2 | M34: 8
A35: 02 | B35: 1 | C35: 90 | D35: 1014.2 | E35: 10 | F35: 7 | H35: 02 | I35: 2 | J35: 71 | K35: 1008.3 | L35: 9.3 | M35: 6
A36: 03 | B36: 1 | C36: 93 | D36: 1013.9 | E36: 10.2 | F36: 8 | H36: 03 | I36: 1 | J36: 78 | K36: 1008 | L36: 8.8 | M36: 6
A37: 04 | B37: 1 | C37: 92 | D37: 1013.7 | E37: 9.7 | F37: 8 | H37: 04 | I37: 1 | J37: 78 | K37: 1008.6 | L37: 9.2 | M37: 8
A38: 05 | B38: 2 | C38: 91 | D38: 1014.2 | E38: 9.8 | F38: 5 | H38: 05 | I38: 1 | J38: 72 | K38: 1009.1 | L38: 8.8 | M38: 7
A39: 06 | B39: 1 | C39: 90 | D39: 1014.5 | E39: 10.6 | F39: 4 | H39: 06 | I39: 2 | J39: 69 | K39: 1009.6 | L39: 8.7 | M39: 8
A40: 07 | B40: 1 | C40: 83 | D40: 1014.5 | E40: 10.5 | F40: 4 | H40: 07 | I40: 3 | J40: 83 | K40: 1011.3 | L40: 7.2 | M40: 8
A41: 08 | B41: 1 | C41: 81 | D41: 1014.3 | E41: 11.6 | F41: 6 | H41: 08 | I41: 2 | J41: 91 | K41: 1011.4 | L41: 7.9 | M41: 7
A42: 09 | B42: 1 | C42: 79 | D42: 1013.8 | E42: 13.1 | F42: 6 | H42: 09 | I42: 1 | J42: 89 | K42: 1011.8 | L42: 9.8 | M42: 7
A43: 10 | B43: 1 | C43: 72 | D43: 1013.4 | E43: 13.1 | F43: 6 | H43: 10 | I43: 2 | J43: 75 | K43: 1011.9 | L43: 9 | M43: 6
A44: 11 | B44: 1 | C44: 65 | D44: 1012.7 | E44: 11.6 | F44: 5 | H44: 11 | I44: 2 | J44: 66 | K44: 1012 | L44: 8.5 | M44: 5
A45: 12 | B45: 1 | C45: 61 | D45: 1012.1 | E45: 10.6 | F45: 4 | H45: 12 | I45: 3 | J45: 52 | K45: 1011.9 | L45: 7.1 | M45: 6
A46: 13 | B46: 1 | C46: 65 | D46: 1011.3 | E46: 12.5 | F46: 6 | H46: 13 | I46: 2 | J46: 51 | K46: 1012 | L46: 6.9 | M46: 6
A47: 14 | B47: 1 | C47: 61 | D47: 1009.7 | E47: 12.6 | F47: 7 | H47: 14 | I47: 2 | J47: 50 | K47: 1012.2 | L47: 6.4 | M47: 5
A48: 15 | B48: 1 | C48: 58 | D48: 1009.1 | E48: 10.6 | F48: 7 | H48: 15 | I48: 2 | J48: 47 | K48: 1012.2 | L48: 6.2 | M48: 5
A49: 16 | B49: 1 | C49: 56 | D49: 1008.9 | E49: 10.2 | F49: 8 | H49: 16 | I49: 2 | J49: 49 | K49: 1012.2 | L49: 6.3 | M49: 6
A50: 17 | B50: 2 | C50: 60 | D50: 1009.2 | E50: 10.6 | F50: 8 | H50: 17 | I50: 3 | J50: 56 | K50: 1013.2 | L50: 7.1 | M50: 7
A51: 18 | B51: 2 | C51: 64 | D51: 1008.3 | E51: 11.5 | F51: 7 | H51: 18 | I51: 3 | J51: 58 | K51: 1014.4 | L51: 6.6 | M51: 6
A52: 19 | B52: 2 | C52: 54 | D52: 1008.1 | E52: 9.6 | F52: 6 | H52: 19 | I52: 2 | J52: 63 | K52: 1015.5 | L52: 6.3 | M52: 7
A53: 20 | B53: 2 | C53: 66 | D53: 1008 | E53: 9.9 | F53: 4 | H53: 20 | I53: 2 | J53: 77 | K53: 1017 | L53: 6 | M53: 6
A54: 21 | B54: 1 | C54: 74 | D54: 1008.3 | E54: 11.2 | F54: 7 | H54: 21 | I54: 2 | J54: 74 | K54: 1017.1 | L54: 5 | M54: 6
A55: 22 | B55: 2 | C55: 71 | D55: 1007.9 | E55: 10.7 | F55: 7 | H55: 22 | I55: 2 | J55: 76 | K55: 1017.4 | L55: 4.7 | M55: 4
A56: 23 | B56: 1 | C56: 69 | D56: 1008.1 | E56: 9.9 | F56: 7 | H56: 23 | I56: 2 | J56: 71 | K56: 1017.5 | L56: 4.3 | M56: 6
A57: Mittel | B57: =ROUND(AVERAGE(B33:B56),1) -> 1.3 | C57: =ROUND(AVERAGE(C33:C56),1) -> 73.7 | D57: =ROUND(AVERAGE(D33:D56),1) -> 1011.5 | E57: =ROUND(AVERAGE(E33:E56),1) -> 10.9 | F57: =ROUND(AVERAGE(F33:F56),1) -> 6.4 | H57: Mittel | I57: =ROUND(AVERAGE(I33:I56),1) -> 2 | J57: =ROUND(AVERAGE(J33:J56),1) -> 68.2 | K57: =ROUND(AVERAGE(K33:K56),1) -> 1012.1 | L57: =ROUND(AVERAGE(L33:L56),1) -> 7.5 | M57: =ROUND(AVERAGE(M33:M56),1) -> 6.4
E59: 2015-05-29 | L59: 2015-05-30

Sheet Kurztabelle
A2: Wetterwarte: Köttewitz | L2: Monat: | M2: Mai | R2: Jahr: | U2: 2015
A4: Dat. | B4: TTT | C4: TxTx | D4: TnTn | E4: Tg | F4: Umin. | G4: UU | H4: NN | I4: RRRR | J4: Art | L4: sss | M4: PPPP | N4: eee | O4: fff | R4: Tage mit | V4: fk | W4: Summe
J5: * | O5: Bft | P5: SS | Q5: Art ( D ) | R5: RR | S5: Ge | T5: Bf6 | U5: Bf8 | V5: Bft | W5: Gewitter
A6: 01. | B6: 9.6 | C6: 14.8 | D6: 6.7 | E6: 6.1 | F6: 49 | G6: 77 | H6: 6 | I6: . | L6: 3.3 | M6: 1007.9 | N6: 5.6 | O6: 1 | V6: 3 | AA6: max >=30,0°C | AB6: max >=25,0°C | AC6: max <0,0°C | AE6: RR >=0,1 mm | AF6: RR >=1,0 mm | AG6: RR >=3,0 mm | AH6: RR >=10,0 mm | AI6: RR >=20,0 mm
A7: 02. | B7: 9.2 | C7: 15.1 | D7: 2.7 | E7: 1.7 | F7: 44 | G7: 69 | H7: 3.1 | I7: . | L7: 9.5 | M7: 1011.4 | N7: 3.5 | O7: 1 | V7: 4 | AA7: =COUNTIF(C6:C15,">=30") -> 0 | AB7: =COUNTIF(C6:C15,">=25") -> 0 | AC7: =COUNTIF(C6:C15,"<0") -> 0 | AE7: =COUNTIF(I6:I15,">=0,1") -> 5 | AF7: =COUNTIF(I6:I15,">=1") -> 4 | AG7: =COUNTIF(I6:I15,">=3") -> 3 | AH7: =COUNTIF(I6:I15,">=10") -> 0 | AI7: =COUNTIF(I6:I15,">=20") -> 0
A8: 03. | B8: 12.5 | C8: 20.3 | D8: 3.3 | E8: 2.2 | F8: 51 | G8: 77 | H8: 5.3 | I8: 4.8 | J8: R | L8: 8.2 | M8: 1009.6 | N8: 8.1 | O8: 2 | R8: 1 | V8: 4 | AA8: =COUNTIF(C18:C27,">=30") -> 0 | AB8: =COUNTIF(C18:C27,">=25") -> 0 | AC8: =COUNTIF(C18:C27,"<0") -> 0 | AE8: =COUNTIF(I18:I27,">=0,1") -> 5 | AF8: =COUNTIF(I18:I27,">=1") -> 2 | AG8: =COUNTIF(I18:I27,">=3") -> 1 | AH8: =COUNTIF(I18:I27,">=10") -> 0 | AI8: =COUNTIF(I18:I27,">=20") -> 0
A9: 04. | B9: 16.9 | C9: 22.9 | D9: 11.7 | E9: 10 | F9: 55 | G9: 79 | H9: 6 | I9: 0.3 | J9: R | L9: 8.2 | M9: 1008.9 | N9: 13 | O9: 1 | R9: 1 | V9: 4 | AA9: =COUNTIF(C30:C40,">=30") -> 0 | AB9: =COUNTIF(C30:C40,">=25") -> 0 | AC9: =COUNTIF(C30:C40,"<0") -> 0 | AE9: =COUNTIF(I30:I40,">=0,1") -> 3 | AF9: =COUNTIF(I30:I40,">=1") -> 1 | AG9: =COUNTIF(I30:I40,">=3") -> 1 | AH9: =COUNTIF(I30:I40,">=10") -> 0 | AI9: =COUNTIF(I30:I40,">=20") -> 0
A10: 05. | B10: 18.2 | C10: 22.8 | D10: 11.5 | E10: 9.4 | F10: 72 | G10: 84 | H10: 7.5 | I10: 3.2 | J10: R | L10: 1.7 | M10: 1006.1 | N10: 15.3 | O10: 2 | R10: 1 | S10: 1 | V10: 5
A11: 06. | B11: 15.9 | C11: 20.9 | D11: 12.4 | E11: 10 | F11: 40 | G11: 71 | H11: 5.4 | I11: . | L11: 1.3 | M11: 1012.4 | N11: 10.4 | O11: 1 | V11: 4 | AA11: min <0,0°C | AB11: min <0-10,0°C | AE11: rel.Lf. 14h >=70% | AG11: rel.Lf. 14h <=40%
A12: 07. | B12: 13.1 | C12: 18.3 | D12: 7.6 | E12: 4.4 | F12: 44 | G12: 64 | H12: 2.6 | I12: . | L12: 7.4 | M12: 1017.2 | N12: 6.2 | O12: 2 | T12: 1 | V12: 6 | AA12: =COUNTIF(D6:D15,"<0") -> 0 | AB12: =COUNTIF(D6:D15,"<=-10") -> 0 | AE12: =COUNTIF(F6:F15,">=70") -> 1 | AG12: =COUNTIF(F6:F15,"<=40") -> 2
A13: 08. | B13: 13.8 | C13: 21.1 | D13: 6 | E13: 5 | F13: 38 | G13: 69 | H13: 5.6 | I13: 2.6 | J13: R | L13: 8.1 | M13: 1017.2 | N13: 7.6 | O13: 1 | R13: 1 | V13: 4 | AA13: =COUNTIF(D18:D27,"<0") -> 0 | AB13: =COUNTIF(D18:D27,"<=-10") -> 0 | AE13: =COUNTIF(F18:F27,">=70") -> 0 | AG13: =COUNTIF(F18:F27,"<=40") -> 3
A14: 09. | B14: 15.1 | C14: 20.9 | D14: 10.6 | E14: 10 | F14: 51 | G14: 77 | H14: 7 | I14: 4.8 | J14: R | L14: 4.2 | M14: 1016.2 | N14: 10.7 | O14: 2 | R14: 1 | S14: 1 | V14: 6 | AA14: =COUNTIF(D30:D40,"<0") -> 0 | AB14: =COUNTIF(D30:D40,"<=-10") -> 0 | AE14: =COUNTIF(F30:F40,">=70") -> 0 | AG14: =COUNTIF(F30:F40,"<=40") -> 0
A15: 10. | B15: 13.1 | C15: 17.6 | D15: 6.3 | E15: 5 | F15: 46 | G15: 72 | H15: 4.5 | I15: . | L15: 6.8 | M15: 1023.5 | N15: 7.8 | O15: 2 | V15: 6
A16: Su | B16: =SUM(B6:B15) -> 137.4 | C16: =SUM(C6:C15) -> 194.7 | D16: 78.8 | E16: 63.8 | F16: XXX | G16: XXX | H16: XXX | I16: =SUM(I6:I15) -> 15.7 | J16: XX | L16: =SUM(L6:L15) -> 58.7 | M16: XXX | N16: XXX | O16: XXX | P16: XXX | Q16: X | R16: =SUM(R6:R15) -> 5 | S16: =SUM(S6:S15) -> 2 | T16: 1 | U16: 0 | V16: XXX | AA16: ohne Sonne | AB16: Son. 0,1-0,9 | AC16: Son. >=10,0 | AE16: Sch. >=1 cm | AF16: Sch. >=3 cm | AG16: Sch. >=10 cm
A17: Mi | B17: =AVERAGE(B6:B15) -> 13.74 | C17: =AVERAGE(C6:C15) -> 19.47 | D17: 7.88 | E17: 6.38 | F17: XXX | G17: 73.9 | H17: 5.3 | I17: XXX | J17: XX | L17: =L16/10 -> 5.87 | M17: =AVERAGE(M6:M15) -> 1013.04 | N17: =AVERAGE(N6:N15) -> 8.82 | O17: 1.5 | P17: =ROUND(AVERAGE(P6:P15),1) ->  | Q17: X | R17: XX | S17: XX | T17: XX | U17: XX | V17: =AVERAGE(V6:V15) -> 4.6 | AA17: =COUNTIF(L6:L15,".") -> 0 | AB17: =COUNTIF(L6:L15,"<1") -> 0 | AC17: =COUNTIF(L6:L15,">=10") -> 0 | AE17: =COUNTIF(P6:P15,">=1") -> 0 | AF17: =COUNTIF(P6:P15,">=3") -> 0 | AG17: =COUNTIF(P6:P15,">=10") -> 0
A18: 11. | B18: 13.4 | C18: 21.4 | D18: 3.8 | E18: 2.8 | F18: 38 | G18: 69 | H18: 5 | I18: . | L18: 11.5 | M18: 1026.3 | N18: 7 | O18: 1 | V18: 4 | AA18: =COUNTIF(L18:L27,".") -> 1 | AB18: =COUNTIF(L18:L27,"<1") -> 0 | AC18: =COUNTIF(L18:L27,">=10") -> 4 | AE18: =COUNTIF(P18:P27,">=1") -> 0 | AF18: =COUNTIF(P18:P27,">=3") -> 0 | AG18: =COUNTIF(P18:P27,">=10") -> 0
A19: 12. | B19: 17.7 | C19: 23.9 | D19: 8.4 | E19: 6.1 | F19: 48 | G19: 63 | H19: 6.4 | I19: 4.5 | J19: R | L19: 3.3 | M19: 1017.8 | N19: 10.3 | O19: 2 | R19: 1 | S19: 1 | V19: 6 | W19: 2 | AA19: =COUNTIF(L30:L40,".") -> 0 | AB19: =COUNTIF(L30:L40,"<1") -> 1 | AC19: =COUNTIF(L30:L40,">=10") -> 1 | AE19: =COUNTIF(P30:P40,">=1") -> 0 | AF19: =COUNTIF(P30:P40,">=3") -> 0 | AG19: =COUNTIF(P30:P40,">=10") -> 0
A20: 13. | B20: 14 | C20: 19.6 | D20: 9 | E20: 8.3 | F20: 41 | G20: 70 | H20: 3.3 | I20: 1.7 | J20: R | L20: 10.2 | M20: 1016.7 | N20: 8.2 | O20: 1 | R20: 1 | V20: 4
A21: 14. | B21: 10.2 | C21: 14.7 | D21: 5.1 | E21: 3.9 | F21: 52 | G21: 78 | H21: 5.1 | I21: . | L21: 4 | M21: 1011.9 | N21: 6.3 | O21: 1 | V21: 4 | AA21: Max TT | AB21: Max TxTx | AC21: Min TgTg | AE21: Max RR
A22: 15. | B22: 11.4 | C22: 18.9 | D22: 2 | E22: 1.7 | F22: 34 | G22: 69 | H22: 2.3 | I22: . | L22: 12.8 | M22: 1014.9 | N22: 5.1 | O22: 1 | V22: 3 | AA22: =MAX(B6:B15,B18:B27,B30:B40) -> 18.2 | AB22: =MAX(C6:C15,C18:C27,C30:C40) -> 23.9 | AC22: =MIN(E6:E15,E18:E27,E30:E40) -> 1.5 | AE22: =MAX(I6:I15,I18:I27,I30:I40) -> 7.1
A23: 16. | B23: 13.2 | C23: 20.3 | D23: 4.7 | E23: 3.3 | F23: 37 | G23: 69 | H23: 5.2 | I23: 0.2 | J23: R | L23: 8.9 | M23: 1019.9 | N23: 6.9 | O23: 2 | R23: 1 | V23: 5 | AA23: Min TT | AB23: Min TnTn | AC23: Min U14 | AE23: Max SS
A24: 17. | B24: 11.7 | C24: 15.7 | D24: 9.3 | E24: 8.9 | F24: 43 | G24: 64 | H24: 6.1 | I24: . | L24: 4.3 | M24: 1022.3 | N24: 5 | O24: 2 | V24: 5 | AA24: =MIN(B6:B15,B18:B27,B30:B40) -> 9.2 | AB24: =MIN(D6:D15,D18:D27,D30:D40) -> 2 | AC24: =MIN(F6:F15,F18:F27,F30:F40) -> 34 | AE24: =MAX(P6:P15,P18:P27,P30:P40) -> 0
A25: 18. | B25: 15.2 | C25: 21.8 | D25: 5.9 | E25: 3.9 | F25: 41 | G25: 63 | H25: 4.9 | I25: . | L25: 10.2 | M25: 1012.4 | N25: 7.7 | O25: 2 | V25: 5
A26: 19. | B26: 16.7 | C26: 21.1 | D26: 11.8 | E26: 9.4 | F26: 50 | G26: 61 | H26: 6.3 | I26: 0.4 | J26: R | L26: 3.5 | M26: 1006.1 | N26: 9 | O26: 2 | R26: 1 | V26: 5
A27: 20. | B27: 12.7 | C27: 15.8 | D27: 8.9 | E27: 8.3 | F27: 49 | G27: 70 | H27: 7.7 | I27: 0.2 | J27: R | L27: . | M27: 1012.5 | N27: 7 | O27: 1 | R27: 1 | V27: 3
A28: Su | B28: =SUM(B18:B27) -> 136.2 | C28: =SUM(C18:C27) -> 193.2 | D28: 68.9 | E28: 56.6 | F28: XXX | G28: XXX | H28: XXX | I28: =SUM(I18:I27) -> 7 | J28: XX | L28: =SUM(L18:L27) -> 68.7 | M28: XXX | N28: XXX | O28: XXX | P28: XXX | Q28: X | R28: =SUM(R18:R27) -> 5 | S28: =SUM(S18:S27) -> 1 | T28: 0 | U28: 0 | V28: XXX
A29: Mi | B29: =AVERAGE(B18:B27) -> 13.62 | C29: =AVERAGE(C18:C27) -> 19.32 | D29: 6.89 | E29: 5.66 | F29: 43.3 | G29: 67.6 | H29: 5.23 | I29: XXX | J29: XX | L29: =L28/10 -> 6.87 | M29: =AVERAGE(M18:M27) -> 1016.08 | N29: =AVERAGE(N18:N27) -> 7.25 | O29: 1.5 | P29: =ROUND(AVERAGE(P18:P27),1) ->  | Q29: X | R29: XX | S29: XX | T29: XX | U29: XX | V29: =AVERAGE(V18:V27) -> 4.4
A30: 21. | B30: 12.2 | C30: 16.9 | D30: 8.4 | E30: 7.2 | F30: 49 | G30: 72 | H30: 5.6 | I30: 0 | L30: 1.4 | M30: 1021.8 | N30: 7 | O30: 1 | V30: 4
A31: 22. | B31: 12.8 | C31: 18.7 | D31: 5.3 | E31: 3.9 | F31: 41 | G31: 65 | H31: 3.4 | I31: . | L31: 11.7 | M31: 1024.7 | N31: 6 | O31: 1 | V31: 3
A32: 23. | B32: 14.4 | C32: 20.6 | D32: 5.9 | E32: 4.4 | F32: 47 | G32: 68 | H32: 5.3 | I32: . | L32: 7.4 | M32: 1018.5 | N32: 8 | O32: 2 | V32: 4
A33: 24. | B33: 14.4 | C33: 18.9 | D33: 10.3 | E33: 8.9 | F33: 56 | G33: 78 | H33: 5.8 | I33: . | L33: 4.2 | M33: 1018.2 | N33: 10.6 | O33: 1 | V33: 3
A34: 25. | B34: 15.2 | C34: 20.5 | D34: 8.7 | E34: 7.8 | F34: 58 | G34: 77 | H34: 5.9 | I34: 7.1 | J34: R | L34: 4.7 | M34: 1012.8 | N34: 10.9 | O34: 1 | V34: 4
A35: 26. | B35: 12.3 | C35: 15.9 | D35: 10.1 | E35: 10 | F35: 57 | G35: 78 | H35: 7.2 | I35: . | L35: 1.8 | M35: 1014.9 | N35: 8.5 | O35: 2 | V35: 5
A36: 27. | B36: 10.5 | C36: 12.7 | D36: 8.4 | E36: - | F36: 64 | G36: 76 | H36: 7.4 | I36: 0 | L36: 0.6 | M36: 1020.5 | N36: 6.3 | O36: 2 | V36: 5
A37: 28. | B37: 14.4 | C37: 20.5 | D37: 7.4 | E37: - | F37: 41 | G37: 66 | H37: 5.1 | I37: . | L37: 4.8 | M37: 1016.6 | N37: 7.6 | O37: 1 | V37: 4
A38: 29. | B38: 15.8 | C38: 20.5 | D38: 10.7 | E38: - | F38: 53 | G38: 74 | H38: 6.7 | I38: 0.5 | J38: R | L38: 5.2 | M38: 1011.5 | N38: 10.9 | O38: 1 | R38: 1 | V38: 4
A39: 30. | B39: 13.6 | C39: 18.9 | D39: 9.4 | E39: 9.2 | F39: 43 | G39: 68 | H39: 6.4 | I39: 0.8 | J39: R | L39: 2.8 | M39: 1012.1 | N39: 7.5 | O39: 2 | R39: 1 | V39: 5
A40: 31. | B40: 14.9 | C40: 22.4 | D40: 5.1 | E40: 1.5 | F40: 42 | G40: 64 | H40: 4.8 | I40: . | L40: 9.4 | M40: 1016 | N40: 7.5 | O40: 2 | V40: 5
A41: Su | B41: =SUM(B30:B40) -> 150.5 | C41: =SUM(C30:C40) -> 206.5 | D41: =SUM(D30:D40) -> 89.7 | E41: =SUM(E30:E40) -> 52.9 | F41: XXX | G41: XXX | H41: XXX | I41: =SUM(I30:I40) -> 8.4 | J41: XX | L41: =SUM(L30:L40) -> 54 | M41: XXX | N41: XXX | O41: XXX | P41: XXX | Q41: X | R41: =SUM(R30:R40) -> 2 | S41: =SUM(S30:S40) -> 0 | T41: =SUM(T30:T40) -> 0 | U41: =SUM(U30:U40) -> 0 | V41: XXX
A42: Mi | B42: =AVERAGE(B30:B40) -> 13.68181818 | C42: =AVERAGE(C30:C40) -> 18.77272727 | D42: =AVERAGE(D30:D40) -> 8.154545455 | E42: =AVERAGE(E30:E40) -> 6.6125 | F42: XXX | G42: =AVERAGE(G30:G40) -> 71.45454545 | H42: =AVERAGE(H30:H40) -> 5.781818182 | I42: XXX | J42: XX | L42: XXX | M42: =AVERAGE(M30:M40) -> 1017.054545 | N42: =AVERAGE(N30:N40) -> 8.254545455 | O42: =AVERAGE(O30:O40) -> 1.454545455 | P42: =ROUND(AVERAGE(P30:P40),1) ->  | Q42: X | R42: XX | S42: XX | T42: XX | U42: XX | V42: =AVERAGE(V30:V40) -> 4.181818182
A43: MSu | B43: =SUM(B16+B28+B41) -> 424.1 | C43: =SUM(C16+C28+C41) -> 594.4 | D43: =SUM(D16+D28+D41) -> 237.4 | E43: =SUM(E16+E28+E41) -> 173.3 | F43: XXX | G43: XXX, | H43: =SUM(H16+H28+H41) ->  | I43: =SUM(I16+I28+I41) -> 31.1 | J43: XX | L43: =SUM(L16+L28+L41) -> 181.4 | M43: XXX | N43: XXX | O43: XXX | P43: =SUM(P16+P28+P41) ->  | Q43: X | R43: =SUM(R16+R28+R41) -> 12 | S43: =SUM(S16+S28+S41) -> 3 | T43: =SUM(T16+T28+T41) -> 1 | U43: =SUM(U16+U28+U41) -> 0 | V43: XXX
A44: MMi | B44: =AVERAGE(B6:B15,B18:B27,B30:B40) -> 13.68064516 | C44: =AVERAGE(C6:C15,C18:C27,C30:C40) -> 19.17419355 | D44: =AVERAGE(D6:D15,D18:D27,D30:D40) -> 7.658064516 | E44: =AVERAGE(E6:E15,E18:E27,E30:E40) -> 6.189285714 | F44: XXX | G44: =AVERAGE(G6:G15,G18:G27,G30:G40) -> 71 | H44: =AVERAGE(H6:H15,H18:H27,H30:H40) -> 5.448387097 | I44: XXXXX | J44: XX | L44: XXXX | M44: =AVERAGE(M6:M15,M18:M27,M30:M40) -> 1015.445161 | N44: =AVERAGE(N6:N15,N18:N27,N30:N40) -> 8.112903226 | O44: =AVERAGE(O6:O15,O18:O27,O30:O40) -> 1.483870968 | P44: =ROUND(AVERAGE(P6:P15,P18:P27,P30:P40),1) ->  | Q44: X | R44: XX | S44: XX | T44: XX | U44: XX | V44: =AVERAGE(V17,V29,V42) -> 4.393939394
B46: Norm | C46: % v N.- | D46: Abw. | E46: Zahl der Tage | L46: Niederschlag mm | P46: Sonnensch.-dauer Std
B47: wert | C47: wert | D47: K | E47: Max.d.Lufttemp.°C | L47: >/= 0,1 | O47: =SUM(AE7:AE9) -> 13 | P47: ohne Sonne | V47: =SUM(AA17:AA19) -> 1
A48: TTT | B48: 13.9 | C48: XXXX | D48: =SUM(B44-B48) -> -0.2193548387 | E48: Tropentag/Hitzetag | I48: =SUM(AA7:AA9) -> 0 | L48: >/= 1,0 | O48: =SUM(AF7:AF9) -> 7 | P48: 0,1 bis 0,9 | V48: =SUM(AB17:AB19) -> 1
A49: RRR | B49: 65 | C49: =SUM(I43*100/B49) -> 47.84615385 | D49: XXXX | E49: Sommertag | I49: =SUM(AB7:AB9) -> 0 | L49: >/= 3,0 | O49: =SUM(AG7:AG9) -> 5 | P49: >/= 10,0 | V49: =SUM(AC17:AC19) -> 5
A50: sss | B50: 217 | C50: =SUM(L43*100/B50) -> 83.59447005 | D50: XXXX | E50: Eistag | I50: =SUM(AC7:AC9) -> 0 | L50: >/=10,0 | O50: =SUM(AH7:AH9) -> 0 | P50: Schneedecke cm
A51: astr. | D51: XXXX | E51: Polartag | I51: 0 | L51: >/= 20,0 | O51: =SUM(AI7:AI9) -> 0 | P51: >/= 1 | V51: =SUM(AE17:AE19) -> 0
A52: mgl. | B52: 480 | C52: =SUM(L43*100/B52) -> 37.79166667 | D52: XXXX | E52: Min.d.Lufttemp.°C | L52: Rel. Luftfeuchte 14 Uhr | P52: >/= 3 | V52: =SUM(AF17:AF19) -> 0
A53: sss | D53: XXXX | E53: Frosttag | I53: =SUM(AA12:AA14) -> 0 | L53: >/=70% | O53: =SUM(AE12:AE14) -> 1 | P53: >/= 10 | V53: =SUM(AG17:AG19) -> 0
E54: Tropennacht | I54: 0 | L54: </=40% | O54: =SUM(AG12:AG14) -> 5
E57: Unter "Tage mit" sind die Angaben Bft 6 & Bft 8 nicht 10 min. - Mittel sonder 2,5 s - Werte.
E58: Wenn ein Wert auch mit einem 10 min. - Wert erreicht wird, erfolgt eine rote Markierung.
E59: Dies gilt rückwirkend auf November 2012.
F113: Tage mit Bft 6 /8 eigentlich in 10 min. - Mittel

Sheet Sichtst.
E1: Sichtweitenstatistik
B5: Wetterstation: Köttewitz | F5: Monat: | G5: Mai | K5: Jahr: | L5: 2015
A7: Dat. | B7: Nebeldauer | C7: Nebel | D7: Dunst | E7: Sicht | F7: Sicht | G7: Sicht | H7: Sicht
B8: in St. u. Min. | E8: mittel | F8: normal | G8: gut | H8: sehr gut
A9: 01. | B9: - | C9: - | D9: - | E9: - | F9: 1 | G9: - | H9: - | N9: =IF(ISNUMBER(B9),B9*24," ") ->  | O9: =IF(ISNUMBER(N9),IF(N9<1,1," ")," ") ->  | P9: =IF(ISNUMBER(N9),IF(N9<8,2," ")," ") ->  | Q9: =IF(ISNUMBER(N9),IF(N9<24,3," ")," ") ->  | R9: =MIN(O9:Q9) -> 0
A10: 02. | B10: - | C10: =IF(R10=1,1,"-") -> - | D10: - | E10: - | F10: 1 | G10: 1 | H10: - | R10: 0
A11: 03. | B11: - | C11: - | D11: - | E11: 1 | F11: 1 | G11: - | H11: - | R11: 0
A12: 04. | B12: - | C12: - | D12: - | E12: - | F12: 1 | G12: 1 | H12: - | R12: 0
A13: 05. | B13: - | C13: - | D13: - | E13: - | F13: 1 | G13: - | H13: - | R13: 0
A14: 06. | B14: - | C14: - | D14: - | E14: - | F14: 1 | G14: 1 | H14: - | R14: 0
A15: 07. | B15: - | C15: - | D15: - | E15: - | F15: - | G15: 1 | H15: - | R15: 0
A16: 08. | B16: - | C16: - | D16: - | E16: - | F16: 1 | G16: 1 | H16: - | R16: 0
A17: 09. | B17: - | C17: - | D17: - | E17: - | F17: 1 | G17: 1 | H17: - | R17: 0
A18: 10. | B18: - | C18: - | D18: - | E18: - | F18: 1 | G18: - | H18: - | R18: 0
A19: 11. | B19: - | C19: - | D19: - | E19: - | F19: 1 | G19: 1 | H19: - | R19: 0
A20: 12. | B20: - | C20: - | D20: - | E20: - | F20: 1 | G20: 1 | H20: - | R20: 0
A21: 13. | B21: - | C21: - | D21: - | E21: - | F21: 1 | G21: 1 | H21: - | R21: 0
A22: 14. | B22: - | C22: - | D22: - | E22: - | F22: 1 | G22: - | H22: - | R22: 0
A23: 15. | B23: - | C23: - | D23: - | E23: - | F23: 1 | G23: 1 | H23: - | R23: 0
A24: 16. | B24: - | C24: - | D24: - | E24: - | F24: 1 | G24: 1 | H24: - | R24: 0
A25: 17. | B25: - | C25: - | D25: - | E25: - | F25: 1 | G25: 1 | H25: - | R25: 0
A26: 18. | B26: - | C26: - | D26: - | E26: - | F26: 1 | G26: - | H26: - | R26: 0
A27: 19. | B27: - | C27: - | D27: - | E27: - | F27: 1 | G27: - | H27: - | R27: 0
A28: 20. | B28: - | C28: - | D28: - | E28: - | F28: 1 | G28: - | H28: - | R28: 0
A29: 21. | B29: - | C29: - | D29: - | E29: - | F29: 1 | G29: - | H29: - | R29: 0
A30: 22. | B30: - | C30: - | D30: - | E30: - | F30: 1 | G30: - | H30: - | R30: 0
A31: 23. | B31: - | C31: - | D31: - | E31: - | F31: 1 | G31: - | H31: - | R31: 0
A32: 24. | B32: - | C32: - | D32: - | E32: 1 | F32: 1 | G32: - | H32: - | R32: 0
A33: 25. | B33: - | C33: - | D33: - | E33: - | F33: 1 | G33: - | H33: - | R33: 0
A34: 26. | B34: - | C34: - | D34: - | E34: 1 | F34: 1 | G34: 1 | H34: - | R34: 0
A35: 27. | B35: - | C35: - | D35: - | E35: - | F35: 1 | G35: - | H35: - | R35: 0
A36: 28. | B36: - | C36: - | D36: - | E36: - | F36: 1 | G36: 1 | H36: - | R36: 0
A37: 29. | B37: - | C37: - | D37: - | E37: - | F37: 1 | G37: - | H37: -
A38: 30. | B38: - | C38: - | D38: - | E38: - | F38: 1 | G38: 1 | H38: -
A39: 31. | B39: - | C39: - | D39: - | E39: - | F39: 1 | G39: 1 | H39: -
A40: Su. | B40: =SUM(B9:B39) -> 00:00:00 | C40: 0 | D40: 0 | E40: 3 | F40: 30 | G40: 16 | H40: 0
B42: Anzahl der Nebeltage : | E42: =SUM(C40) -> 0
B43: Anzahl der Tage Sicht >= 50 km : | E43: =SUM(G40) -> 16

Sheet Monatsdiagramm
A1: Klimadiagramm | C1: Wetterstation Köttewitz | I1: (211 m ü. NHN)
A3: Mai 2015
C5: aktuell | D5: langj. Mittel | E5: Abw. vom lj. Mittel
B6: höchste Temperatur (°C): | C6: =MAX('Daten für Diagr.'!C2:C32) -> 23.9 | D6: am | E6: 2015-05-12
B7: mittlere Temperatur (°C): | C7: ='Daten für Diagr.'!B33 -> 13.68064516 | D7: =Kurztabelle!B48 -> 13.9 | E7: =C7-D7 -> -0.2193548387 | F7: K
B8: tiefste Temperatur (°C): | C8: =MIN('Daten für Diagr.'!D2:D32) -> 2 | D8: am | E8: 2015-05-15
B9: Niederschlagshöhe (mm): | C9: =Kurztabelle!I43 -> 31.1 | D9: =Kurztabelle!B49 -> 65 | E9: =100/D9*C9 -> 47.84615385 | F9: %
B10: Sonnenscheindauer (Std.)*: | C10: =Kurztabelle!L43 -> 181.4 | D10: =Kurztabelle!B50 -> 217 | E10: =100/D10*C10 -> 83.59447005 | F10: %
A66: *Die Wetterstation kann, durch geographische Hindernisse, nicht die maximal mögliche Sonnenscheindauer aufzeichnen. Es gilt ein Übergangsprozentsatz von: Dez 30 %; Okt/Nov & Jan/Feb 40 %; Mär & Sep 65 %; Apr 80 %; Mai - August 90 %.
A67: Diese Werte entsprechend annähernd 100 % (Normalwert Köttewitz). Nach 10 Jahren erfolgt die Umstellung des Prozentsatzes nach der örtlichen Aufzeichnung.

Sheet Daten für Diagr.
B1: Td | C1: Tmax | D1: Tmin | E1: RR | F1: Schnee | G1: Sonne | H1: Luftdr. | I1: MWT | J1: GWL | K1: Name | L1: Sonstiges
A2: 2015-05-01 | B2: 9.6 | C2: 14.8 | D2: 6.7 | G2: 3.3 | H2: 1007.9 | I2: 11.3 | L2: Von 00:00 Uhr - 02:09 Uhr; 05:30 Uhr - 05:59 Uhr; 06:20 Uhr - 07:19 Uhr mäßiger Regen (WW 63). Von 07:20 Uhr - 07:23 Uhr leichter Regen (WW 61).
A3: 2015-05-02 | B3: 9.2 | C3: 15.1 | D3: 2.7 | G3: 9.5 | H3: 1011.4 | I3: 11.5
A4: 2015-05-03 | B4: 12.5 | C4: 20.3 | D4: 3.3 | E4: 4.8 | G4: 8.2 | H4: 1009.6 | I4: 11.7 | J4: SWz | K4: T Ivo | L4: Von 20:10 Uhr - 22:29 Uhr mäßiger Regen (WW 63). Von 17:45 Uhr - 17:54 Uhr; 19:05 Uhr - 19:10 Uhr; 19:49 Uhr - 20:09 Uhr; 22:30 Uhr - 22:39 Uhr leichter Regen (WW 61).
A5: 2015-05-04 | B5: 16.9 | C5: 22.9 | D5: 11.7 | E5: 0.3 | G5: 8.2 | H5: 1008.9 | I5: 11.9 | L5: Leicht schwül.
A6: 2015-05-05 | B6: 18.2 | C6: 22.8 | D6: 11.5 | E6: 3.2 | G6: 1.7 | H6: 1006.1 | I6: 12.1 | K6: T Zoran | L6: Von 16:20 Uhr - 16:49 Uhr leichtes Gewitter mit Regen (WW 95). Vor 06:00 Uhr ; Gegen 19:00 Uhr; 20:00 Uhr; 21:00 Uhr; vor 23:59 Uhr leichter Regen (WW 61). Von 15:50 Uhr - 16:19 Uhr Ferngewitter (WW 17).
A7: 2015-05-06 | B7: 15.9 | C7: 20.9 | D7: 12.4 | G7: 1.3 | H7: 1012.4 | I7: 12.3 | J7: Wz | L7: Vor 05:00 Uhr leichter Regen (WW 61).
A8: 2015-05-07 | B8: 13.1 | C8: 18.3 | D8: 7.6 | G8: 7.4 | H8: 1017.2 | I8: 12.5 | K8: H Suse
A9: 2015-05-08 | B9: 13.8 | C9: 21.1 | D9: 6 | E9: 2.6 | G9: 8.1 | H9: 1017.2 | I9: 12.65 | K9: T Andreas | L9: Von 05:00 Uhr - 06:09 Uhr mäßiger Regen (WW 63) Von 04:30 Uhr - 04:59 Uhr; 06:10 Uhr - 06:19 Uhr leichter Regen (WW 61).
A10: 2015-05-09 | B10: 15.1 | C10: 20.9 | D10: 10.6 | E10: 4.8 | G10: 4.2 | H10: 1016.2 | I10: 12.85 | L10: Von 21:30 Uhr - 21:59 Uhr leichtes Gewitter mit Regen (WW 95). Von 22:00 Uhr - 22:09 Uhr; 22:50 Uhr - 23:09 Uhr starker Regenschauer (WW 81). Von 17:00 Uhr - 17:29 Uhr; 23:10 Uhr - 23:39 Uhr mäßiger Regenschauer (WW 81). Von 16:50 Uhr - 16:59 Uhr; Gegen 19:00 Uhr leichter Regenschauer (WW 80).
A11: 2015-05-10 | B11: 13.1 | C11: 17.6 | D11: 6.3 | G11: 6.8 | H11: 1023.5 | I11: 13 | J11: Wa | K11: H Tina | L11: Gegen 01:20 Uhr leichter Regenschauer (WW 80).
A12: 2015-05-11 | B12: 13.4 | C12: 21.4 | D12: 3.8 | G12: 11.5 | H12: 1026.3 | I12: 13.2 | J12: SWa
A13: 2015-05-12 | B13: 17.7 | C13: 23.9 | D13: 8.4 | E13: 4.5 | G13: 3.3 | H13: 1017.8 | I13: 13.35 | J13: SWz | K13: T Benedikt | L13: Gegen 21:00 Uhr; 22:30 Uhr leichtes Gewitter mit Regen (WW 95). Von 21:30 Uhr - 22:09 Uhr mäßiger Regenschauer (WW 81). Von 21:10 Uhr - 21:29 Uhr leichter Regenschauer (WW 80). Von 21:10 Uhr - 22:29 Uhr Gewitter in der Ferne (WW 17).
A14: 2015-05-13 | B14: 14 | C14: 19.6 | D14: 9 | E14: 1.7 | G14: 10.2 | H14: 1016.7 | I14: 13.5 | J14: Wz
A15: 2015-05-14 | B15: 10.2 | C15: 14.7 | D15: 5.1 | G15: 4 | H15: 1011.9 | I15: 13.65 | J15: NWa | K15: H Ulrike | L15: Von 05:20 Uhr - 05:59 Uhr starker Regen (WW 65).
A16: 2015-05-15 | B16: 11.4 | C16: 18.9 | D16: 2 | G16: 12.8 | H16: 1014.9 | I16: 13.8 | J16: Wa | L16: Von 17:00 Uhr - 20:29 Uhr leichter Regen, unterbrochen (WW 60).
A17: 2015-05-16 | B17: 13.2 | C17: 20.3 | D17: 4.7 | E17: 0.2 | G17: 8.9 | H17: 1019.9 | I17: 13.95
A18: 2015-05-17 | B18: 11.7 | C18: 15.7 | D18: 9.3 | G18: 4.3 | H18: 1022.3 | I18: 14.1
A19: 2015-05-18 | B19: 15.2 | C19: 21.8 | D19: 5.9 | G19: 10.2 | H19: 1012.4 | I19: 14.25 | J19: Wz | K19: T Diethelm
A20: 2015-05-19 | B20: 16.7 | C20: 21.1 | D20: 11.8 | E20: 0.4 | G20: 3.5 | H20: 1006.1 | I20: 14.4 | J20: TrW | L20: Gegen 12:00 Uhr; 14:00 Uhr; 14:45 Uhr leichter Regenschauer (WW 80).
A21: 2015-05-20 | B21: 12.7 | C21: 15.8 | D21: 8.9 | E21: 0.2 | H21: 1012.5 | I21: 14.55 | L21: Von 11:30 Uhr - 14:59 Uhr; Gegen 17:00 Uhr leichter Regen, unterbrochen (WW 60).
A22: 2015-05-21 | B22: 12.2 | C22: 16.9 | D22: 8.4 | G22: 1.4 | H22: 1021.8 | I22: 14.65 | L22: Gegen 15:00 Uhr leichter Regen (WW 61).
A23: 2015-05-22 | B23: 12.8 | C23: 18.7 | D23: 5.3 | G23: 11.7 | H23: 1024.7 | I23: 14.8 | J23: NWa | K23: H Viola
A24: 2015-05-23 | B24: 14.4 | C24: 20.5 | D24: 5.9 | G24: 7.4 | H24: 1018.5 | I24: 14.9
A25: 2015-05-24 | B25: 14.4 | C25: 18.9 | D25: 10.3 | G25: 4.2 | H25: 1018.2 | I25: 15.05
A26: 2015-05-25 | B26: 15.2 | C26: 20.5 | D26: 8.7 | E26: 7.1 | G26: 4.7 | H26: 1012.8 | I26: 15.15 | J26: TrM | K26: T Gunnar
A27: 2015-05-26 | B27: 12.3 | C27: 15.9 | D27: 10.1 | G27: 1.8 | H27: 1014.9 | I27: 15.25 | L27: Von 00:40 Uhr - 05:29 Uhr mäßiger Regen (WW 63). Von 05:30 Uhr - 07:29 Uhr leichter Regen (WW 61).
A28: 2015-05-27 | B28: 10.5 | C28: 12.7 | D28: 8.4 | G28: 0.6 | H28: 1020.5 | I28: 15.35 | L28: Gegen 19:00 Uhr leichter Regen (WW 61).
A29: 2015-05-28 | B29: 14.4 | C29: 20.5 | D29: 7.4 | G29: 4.8 | H29: 1016.6 | I29: 15.45 | J29: Wz | K29: T Hubertus
A30: 2015-05-29 | B30: 15.8 | C30: 20.5 | D30: 10.7 | E30: 0.5 | G30: 5.2 | H30: 1011.5 | I30: 15.55 | L30: Gegen 15:00 Uhr leichter Regen (WW 61).
A31: 2015-05-30 | B31: 13.6 | C31: 18.9 | D31: 9.4 | E31: 0.8 | G31: 2.8 | H31: 1012.1 | I31: 15.65 | L31: Von 07:50 Uhr - 07:59 Uhr starker Regen (WW 65). Von 07:30 Uhr - 07:49 Uhr mäßiger Regen (WW 63). Von 06:40 Uhr - 07:29 Uhr leichter Regen (WW 61).
A32: 2015-05-31 | B32: 14.9 | C32: 22.4 | D32: 5.1 | G32: 9.4 | H32: 1016 | I32: 15.75
A33: Durchschnitt | B33: =AVERAGE(B2:B32) -> 13.68064516 | C33: =AVERAGE(C2:C32) -> 19.17096774 | D33: =AVERAGE(D2:D32) -> 7.658064516 | E33: - | G33: =AVERAGE(G2:G32) -> 6.046666667 | H33: =AVERAGE(H2:H32) -> 1015.445161 | I33: =AVERAGE(I2:I32) -> 13.80967742
A34: Mittel | B34: 13.9 | E34: 65 | F34: - | G34: 217 | H34: 1015.4
A90: 1
A91: 2
A92: 3
A93: 4
A94: 5
A95: 6
A96: 7
A97: 8
A98: 9
A99: 10
A100: 11
A101: 12
A102: 13
A103: 14
A104: 15
A105: 16
A106: 17
A107: 18
A108: 19
A109: 20
A110: 21
A111: 22
A112: 23
A113: 24
A114: 25
A115: 26
A116: 27
A117: 28
A118: 29
A119: 30
A120: 31

Sheet Erdbodentem.
E1: Erdbodentemperatur
B5: Wetterstation: Köttewitz | F5: Monat: | G5: Juni | K5: Jahr: | L5: 2015
A7: Dat. | B7: 7 Uhr | C7: 8Uhr | D7: 12 Uh | E7: 13 Uhr | F7: 19 Uhr | H7: NN | I7: 10 °C -
I8: Eindringtiefe
A9: 01. | B9: - | D9: - | F9: - | H9: - | I9: -
A10: 02. | B10: - | D10: - | F10: - | H10: - | I10: -
A11: 03. | B11: - | D11: - | F11: - | H11: - | I11: -
A12: 04. | B12: - | D12: - | F12: - | H12: - | I12: -
A13: 05. | B13: - | D13: - | F13: - | H13: - | I13: -
A14: 06. | B14: - | D14: - | F14: - | H14: - | I14: -
A15: 07. | B15: - | D15: - | F15: - | H15: - | I15: -
A16: 08. | B16: - | D16: - | F16: - | H16: - | I16: -
A17: 09. | B17: - | D17: - | F17: - | H17: - | I17: -
A18: 10. | B18: - | D18: - | F18: - | H18: - | I18: -
A19: 11. | B19: - | D19: - | F19: - | H19: - | I19: -
A20: 12. | B20: - | D20: - | F20: - | H20: - | I20: -
A21: 13. | B21: - | D21: - | F21: - | H21: - | I21: -
A22: 14. | B22: - | D22: - | F22: - | H22: - | I22: -
A23: 15. | B23: - | D23: - | F23: - | H23: - | I23: -
A24: 16. | B24: - | D24: - | F24: - | H24: - | I24: -
A25: 17. | B25: - | D25: - | F25: - | H25: - | I25: -
A26: 18. | B26: - | D26: - | F26: - | H26: - | I26: -
A27: 19. | B27: - | D27: - | F27: - | H27: - | I27: -
A28: 20. | B28: - | D28: - | F28: - | H28: - | I28: -
A29: 21. | B29: - | D29: - | F29: - | H29: - | I29: -
A30: 22. | B30: - | D30: - | F30: - | H30: - | I30: -
A31: 23. | B31: - | D31: - | F31: - | H31: - | I31: -
A32: 24. | B32: - | D32: - | F32: - | H32: - | I32: -
A33: 25. | B33: - | D33: - | F33: - | H33: - | I33: -
A34: 26. | B34: - | D34: - | F34: - | H34: - | I34: -
A35: 27. | B35: - | D35: - | F35: - | H35: - | I35: -
A36: 28. | B36: - | D36: - | F36: - | H36: - | I36: -
A37: 29. | B37: - | D37: - | F37: - | H37: - | I37: -
A38: 30. | B38: - | D38: - | F38: - | H38: - | I38: -
B40: Temperatur - 10 cm/Temperatur - 20 cm/Temperatur -50 cm
